bitfinex-derivatives/quotes_ETHF0:USTF0_20250329
["timestamp","ask_amount","ask_price","bid_price","bid_amount"]
[1743285210270,2.53592357,1819.3,1819.1,6.17174]
[1743285210472,2.53592357,1819.3,1819.2,1.4289]
[1743285210672,1.43614357,1819.3,1819.2,1.4289]
[1743285211077,2.53588357,1819.3,1819.2,1.4289]
[1743285212472,1.43614357,1819.3,1819.2,1.4289]
[1743285213379,1.43614357,1819.3,1819.2,2.5287]
[1743285214081,23.70837991,1819.7,1819.6,1.09956]
[1743285214381,23.70837991,1819.7,1819.6,4.30736]
[1743285216381,0.00824357,1819.8,1819.7,1.09949]
[1743285216581,0.00824357,1819.8,1819.7,7.55099]
[1743285219793,0.00824357,1819.8,1819.7,7.54999]
[1743285220484,1.4879,1820.1,1820.0,1.09931]
[1743285220682,23.70837991,1820.4,1820.3,1.09913]
[1743285220879,23.70837991,1820.4,1820.3,4.67513]
[1743285221387,23.70837991,1820.4,1820.3,6.05113]
[1743285222086,23.67540563,1820.4,1820.3,8.55113]
[1743285222288,23.67540563,1820.4,1820.3,9.10073]
[1743285222489,1.4523,1820.9,1820.8,1.09883]
[1743285223186,1.4523,1820.9,1820.8,2.47483]
[1743285224180,3.2078,1821.1,1820.8,1.376]
[1743285224583,3.2078,1821.1,1821.0,1.09871]
[1743285224890,3.2078,1821.1,1821.0,4.67471]
[1743285225788,1.4354,1821.2,1821.1,1.09865]
[1743285225983,1.4354,1821.2,1821.1,2.46505]
[1743285228484,1.4354,1821.2,1820.9,3.2078]
[1743285228685,1.09871,1821.0,1820.9,3.2078]
[1743285228989,1.09883,1820.8,1820.7,0.00824357]
[1743285230093,4.30663,1820.8,1820.7,0.00824357]
[1743285230493,1.09907,1820.4,1820.3,3.2078]
[1743285232890,1.09913,1820.3,1820.2,0.00824357]
[1743285233094,2.53413,1820.3,1820.2,0.00824357]
[1743285237397,0.00824357,1820.5,1820.4,1.09907]
[1743285237596,0.00824357,1820.5,1820.4,3.59907]
[1743285237794,2.49895,1821.0,1820.4,2.5]
[1743285238096,1.4002,1821.0,1820.9,1.09877]
[1743285238397,1.4002,1821.0,1820.9,4.67277]
[1743285238595,1.4002,1821.0,1820.9,3.574]
[1743285238996,1.4002,1821.0,1820.9,5.0103]
[1743285239700,1.09868,1821.1,1820.9,5.0103]
[1743285240199,2.57778,1821.1,1820.9,5.0103]
[1743285240798,1.0988,1820.9,1820.7,3.2078]
[1743285240992,1.0988,1820.9,1820.7,9.34259]
[1743285241197,1.09883,1820.8,1820.7,8.2437]
[1743285241795,1.09881,1820.9,1820.7,8.2437]
[1743285242507,1.09883,1820.8,1820.7,8.2437]
[1743285242801,1.4791,1821.1,1820.7,8.2437]
[1743285243003,1.09881,1820.9,1820.7,8.2437]
[1743285244405,1.09883,1820.8,1820.7,4.6697]
[1743285244597,2.57183,1820.8,1820.7,8.2427]
[1743285246905,2.57183,1820.8,1820.7,4.6697]
[1743285247195,1.81386,1821.3,1821.1,1.09863]
[1743285247402,1.81386,1821.3,1821.1,4.67163]
[1743285247403,1.09856,1821.3,1821.1,4.67163]
[1743285247702,1.09859,1821.3,1821.1,3.573]
[1743285247996,1.09859,1821.3,1821.2,1.4924]
[1743285248597,3.2078,1821.3,1821.2,2.59099]
[1743285248897,1.09851,1821.4,1821.2,1.4924]
[1743285249101,3.9325,1821.6,1821.2,1.4924]
[1743285249102,1.09853,1821.3,1821.2,1.4924]
[1743285252705,1.09859,1821.2,1821.1,3.58424357]
[1743285254700,1.09859,1821.2,1821.1,0.00824357]
[1743285255907,4.30639,1821.2,1821.1,0.00824357]
[1743285259110,2.74666,1821.1,1820.7,0.7354]
[1743285259306,1.09895,1820.6,1820.5,3.2078]
[1743285259513,1.09913,1820.3,1820.2,0.6905]
[1743285259815,1.09925,1820.1,1820.0,3.2078]
[1743285260014,1.09925,1820.1,1819.9,0.6905]
[1743285260015,3.2078,1820.2,1819.8,3.2078]
[1743285260311,1.09937,1819.9,1819.8,3.21604357]
[1743285261810,1.09937,1819.9,1819.8,0.00824357]
[1743285262305,4.30717,1819.9,1819.8,0.00824357]
[1743285262505,1.09937,1819.9,1819.8,0.00824357]
[1743285262911,0.00824357,1820.2,1819.8,0.00824357]
[1743285263113,1.10746357,1820.2,1819.9,1.09935]
[1743285263313,1.10746357,1820.2,1820.0,1.3968]
[1743285263506,1.10746357,1820.2,1820.0,4.9868]
[1743285263708,1.10746357,1820.2,1820.1,0.6889]
[1743285264107,0.00824357,1820.2,1820.1,0.6889]
[1743285265405,1.10743357,1820.2,1820.1,0.6889]
[1743285265603,0.00824357,1820.2,1820.1,4.99595]
[1743285265812,5.874,1821.0,1820.5,1.09895]
[1743285265813,1.09884,1820.8,1820.5,1.09895]
[1743285266115,1.397,1820.8,1820.6,2.59623]
[1743285266313,1.397,1820.8,1820.7,1.4973]
[1743285266914,2.49583,1820.8,1820.7,1.4973]
[1743285267312,1.397,1820.8,1820.7,1.4973]
[1743285267513,1.09882,1820.9,1820.7,1.4973]
[1743285267708,3.9368,1821.1,1820.7,1.4973]
[1743285267709,1.4232,1821.0,1820.7,1.4973]
[1743285267907,1.09883,1820.8,1820.7,1.4973]
[1743285269017,1.09889,1820.7,1820.6,0.00824357]
[1743285269313,2.52209,1820.7,1820.6,0.00824357]
[1743285270212,1.09901,1820.5,1820.4,3.2078]
[1743285270916,2.58451,1820.5,1820.4,3.2078]
[1743285271317,9.94097,1820.5,1820.3,0.00824357]
[1743285271511,1.09907,1820.4,1820.3,0.00824357]
[1743285271713,1.09931,1820.0,1819.9,3.2078]
[1743285272416,1.09943,1819.8,1819.7,51.4782]
[1743285272613,1.09943,1819.8,1819.7,50.764]
[1743285272813,1.09943,1819.8,1819.6,8.29684357]
[1743285273015,1.4576,1819.7,1819.6,8.29684357]
[1743285276219,2.55709,1819.7,1819.6,8.29684357]
[1743285277613,2.55709,1819.7,1819.6,4.70084357]
[1743285281119,2.55709,1819.7,1819.6,1.49304357]
[1743285282015,1.09947,1819.8,1819.6,2.59260357]
[1743285282213,1.09947,1819.8,1819.7,1.4614]
[1743285282413,1.4229,1819.9,1819.7,2.56085]
[1743285282414,1.09939,1819.9,1819.7,2.56085]
[1743285283016,1.09943,1819.8,1819.7,1.4614]
[1743285283835,1.09943,1819.8,1819.7,2.1472]
[1743285285115,1.09943,1819.8,1819.7,5.7322]
[1743285288526,1.09941,1819.9,1819.7,5.7322]
[1743285288721,2.47013,1819.8,1819.7,6.83165]
[1743285289722,2.47013,1819.8,1819.7,5.7322]
[1743285293632,0.7117,1820.1,1819.7,5.7322]
[1743285293935,1.09924,1820.2,1820.0,1.09931]
[1743285294124,2.58934,1820.2,1820.1,1.4983]
[1743285294327,4.30697,1820.3,1820.1,2.59755]
[1743285294528,4.6979,1820.3,1820.2,1.09919]
[1743285294725,3.2078,1820.3,1820.2,1.4983]
[1743285294927,4.30693,1820.3,1820.2,1.4983]
[1743285296732,1.09913,1820.3,1820.2,1.4983]
[1743285302037,1.0991,1820.4,1820.2,1.4983]
[1743285302338,1.0991,1820.4,1820.3,3.574]
[1743285307739,1.0991,1820.4,1820.3,4.981]
[1743285310746,2.58915,1820.5,1820.3,6.08011]
[1743285310946,2.58914,1820.5,1820.4,1.4366]
[1743285311451,1.4901,1820.5,1820.4,2.53567]
[1743285311642,2.58911,1820.5,1820.4,2.53567]
[1743285311843,2.58911,1820.5,1820.4,1.4366]
[1743285315851,2.58911,1820.5,1820.3,4.67309]
[1743285316061,2.46627,1820.4,1820.3,4.67309]
[1743285316250,3.17167,1820.4,1820.3,4.67309]
[1743285316751,2.0726,1820.4,1820.3,4.67309]
[1743285316957,1.3672,1820.4,1820.3,6.04779]
[1743285321357,1.10723357,1820.6,1820.5,1.09901]
[1743285321560,2.58423357,1820.6,1820.5,1.09901]
[1743285322663,1.48524357,1820.6,1820.5,1.09901]
[1743285324765,1.48524357,1820.6,1820.5,3.88011]
[1743285336867,0.00824357,1820.6,1820.5,3.88011]
[1743285349183,2.2044,1820.9,1820.8,1.09883]
[1743285377090,2.2044,1820.9,1820.8,2.46303]
[1743285378092,1.4862,1820.9,1820.8,2.46303]
[1743285378492,1.4862,1820.9,1820.8,3.16503]
[1743285390400,0.74234357,1821.0,1820.8,3.16503]
[1743285390401,0.00824357,1821.0,1820.9,1.09877]
[1743285390595,0.00824357,1821.0,1820.9,10.06297]
[1743285392296,23.43224345,1821.3,1821.2,1.09859]
[1743285392496,24.79324345,1821.3,1821.2,7.87639]
[1743285393098,24.79324345,1821.3,1821.2,9.23909]
[1743285393998,1.361,1821.3,1821.2,9.23909]
[1743285394803,23.43224345,1821.7,1821.2,8.1405]
[1743285395006,23.43224345,1821.7,1821.6,1.09835]
[1743285395198,23.43224345,1821.7,1821.6,4.66835]
[1743285395503,24.92484345,1821.7,1821.6,4.66835]
[1743285395902,24.92484345,1821.7,1821.6,6.05805]
[1743285397910,1.4926,1821.7,1821.6,6.05805]
[1743285402806,1.4926,1821.7,1821.6,9.26585]
[1743285404215,1.4926,1821.7,1821.6,6.05805]
[1743285411521,1.4926,1821.7,1821.6,9.26585]
[1743285413213,1.4926,1821.7,1821.6,6.05805]
[1743285416515,1.4926,1821.7,1821.6,9.26585]
[1743285418922,26.64004345,1822.2,1821.6,8.1675]
[1743285419126,1.4768,1822.1,1822.0,1.09809]
[1743285419723,1.4768,1822.1,1822.0,2.50129]
[1743285420628,1.4768,1822.1,1822.0,5.70909]
[1743285421023,0.6835,1822.4,1822.1,1.098]
[1743285421228,1.4768,1822.3,1822.2,4.66597]
[1743285421426,1.4768,1822.3,1822.2,6.06917]
[1743285428235,2.57473,1822.3,1822.2,1.4032]
[1743285428537,2.57473,1822.3,1821.7,6.78304357]
[1743285428538,1.09823,1821.8,1821.7,6.78304357]
[1743285429230,1.09823,1821.8,1821.7,7.88133357]
[1743285429929,1.09823,1821.8,1821.7,6.78304357]
[1743285430530,1.09823,1821.8,1821.7,3.57524357]
[1743285433743,1.09823,1821.8,1821.7,0.00824357]
[1743285434034,3.59823,1821.8,1821.7,0.00824357]
[1743285434238,6.80603,1821.8,1821.7,0.00824357]
[1743285435341,1.09853,1821.3,1821.2,55.3632]
[1743285435541,1.09853,1821.3,1821.2,58.9302]
[1743285435836,1.09853,1821.3,1821.2,60.02879]
[1743285436239,1.09853,1821.3,1821.2,58.9302]
[1743285436833,2.49273,1821.3,1821.2,58.9302]
[1743285437340,0.00824357,1821.4,1821.2,58.9302]
[1743285437535,0.00824357,1821.4,1821.3,2.47853]
[1743285437732,3.9291,1821.9,1821.3,2.47853]
[1743285437935,2.49364,1821.8,1821.6,1.09832]
[1743285438235,1.3954,1821.8,1821.7,6.04529]
[1743285438436,1.3954,1822.0,1821.7,4.947]
[1743285438635,1.3954,1822.0,1821.9,1.09817]
[1743285439141,1.3954,1822.0,1821.9,1.82227]
[1743285440744,1.3954,1822.0,1821.9,3.18487]
[1743285440946,1.3954,1822.0,1821.9,3.90937]
[1743285441145,1.09803,1822.2,1822.0,1.09807]
[1743285441349,1.4658,1822.1,1822.0,4.66507]
[1743285453757,1.4658,1822.1,1822.0,6.15137]
[1743285453947,1.77987,1822.3,1822.0,6.15137]
[1743285454152,2.45967,1822.3,1822.1,1.09802]
[1743285454351,2.45969,1822.2,1822.1,2.58432]
[1743285455455,2.45969,1822.2,1822.1,1.4863]
[1743285455959,2.45969,1822.2,1822.1,2.58435]
[1743285456659,1.3617,1822.2,1822.1,2.58435]
[1743285456858,1.3617,1822.2,1822.0,0.00824357]
[1743285457062,1.09829,1821.7,1821.6,3.2078]
[1743285457259,1.09829,1821.7,1821.6,6.7738]
[1743285458157,1.09829,1821.7,1821.6,3.2078]
[1743285458353,1.09835,1821.6,1821.5,3.57424357]
[1743285458553,2.59075,1821.6,1821.5,0.00824357]
[1743285460458,5.79855,1821.6,1821.5,0.00824357]
[1743285465468,2.59075,1821.6,1821.5,0.00824357]
[1743285465866,5.79855,1821.6,1821.5,0.00824357]
[1743285469470,6.48185,1821.6,1821.5,0.00824357]
[1743285470268,3.27405,1821.6,1821.5,0.00824357]
[1743285470471,6.48185,1821.6,1821.5,0.00824357]
[1743285470968,3.27405,1821.6,1821.5,0.00824357]
[1743285471567,0.00824357,1821.8,1821.6,1.09833]
[1743285471874,1.10651357,1821.8,1821.7,0.737]
[1743285472074,1.10651357,1821.8,1821.7,2.2258]
[1743285472866,1.10651357,1821.8,1821.7,2.9313]
[1743285473168,1.10651357,1821.8,1821.7,4.02959]
[1743285474066,1.10651357,1821.8,1821.7,7.59559]
[1743285475979,1.09829,1821.7,1821.6,6.7738]
[1743285476179,2.60549,1821.7,1821.6,6.7738]
[1743285476370,2.60549,1821.7,1821.6,8.2384]
[1743285476569,2.60549,1821.7,1821.6,3.2078]
[1743285476770,3.33219,1821.7,1821.6,6.7738]
[1743285477680,3.33219,1821.7,1821.6,3.566]
[1743285477883,3.33219,1821.7,1821.6,6.7738]
[1743285479078,3.33219,1821.7,1821.6,3.566]
[1743285479284,3.33219,1821.7,1821.6,6.7738]
[1743285480380,3.33219,1821.7,1821.6,3.566]
[1743285480686,3.33219,1821.7,1821.6,6.7738]
[1743285481286,3.33219,1821.7,1821.6,3.2078]
[1743285483997,1.09835,1821.6,1821.5,0.00824357]
[1743285484292,3.34695,1821.6,1821.5,0.00824357]
[1743285484885,1.09853,1821.3,1821.2,3.2078]
[1743285485086,1.09869,1821.1,1821.0,3.2078]
[1743285485287,1.09871,1821.0,1820.9,0.6836]
[1743285485482,1.09877,1820.9,1820.8,8.8323]
[1743285486198,1.09877,1820.9,1820.8,5.2663]
[1743285486394,1.09877,1820.9,1820.8,2.0585]
[1743285489696,3.2078,1821.2,1820.9,1.09872]
[1743285489894,2.54116,1821.3,1821.1,1.09863]
[1743285490113,2.54117,1821.3,1821.0,1.78656]
[1743285490394,1.09862,1821.2,1821.0,0.6879]
[1743285490593,1.09865,1821.1,1821.0,0.6879]
[1743285491198,1.09865,1821.1,1821.0,4.2539]
[1743285492801,1.09865,1821.1,1821.0,0.6879]
[1743285493405,2.56025,1821.1,1821.0,0.6879]
[1743285499102,1.09871,1821.0,1820.9,3.566]
[1743285499304,2.54401,1821.0,1820.9,3.566]
[1743285499512,1.09877,1820.9,1820.8,7.4795]
[1743285499805,2.54407,1820.9,1820.8,3.2078]
[1743285501106,1.09883,1820.8,1820.7,0.00824357]
[1743285501308,3.17553,1820.8,1820.7,0.00824357]
[1743285505413,3.17553,1820.8,1820.7,1.10713357]
[1743285505414,1.3635,1820.8,1820.7,1.10713357]
[1743285505618,2.46233,1820.8,1820.7,0.00824357]
[1743285505810,2.46233,1820.8,1820.7,2.22864357]
[1743285507312,2.46233,1820.8,1820.7,0.00824357]
[1743285518122,5.67013,1820.8,1820.7,0.00824357]
[1743285520512,1.09895,1820.6,1820.5,1.4797]
[1743285521220,2.56605,1820.6,1820.5,1.4797]
[1743285521624,1.09907,1820.4,1820.3,1.3875]
[1743285521818,1.09919,1820.2,1820.1,1.3698]
[1743285522225,2.8415,1820.3,1820.0,4.62344357]
[1743285522226,1.09925,1820.1,1820.0,4.62344357]
[1743285525230,1.09925,1820.1,1820.0,1.41564357]
[1743285525432,1.09925,1820.1,1820.0,0.70454357]
[1743285525620,1.09925,1820.1,1819.6,0.6939]
[1743285525621,1.09949,1819.7,1819.6,0.6939]
[1743285525820,1.09949,1819.7,1819.6,2.9011]
[1743285526427,1.09962,1819.5,1819.4,0.6939]
[1743285526627,1.09962,1819.5,1819.4,2.9011]
[1743285527726,2.55572,1819.5,1819.4,2.9011]
[1743285531029,2.55572,1819.5,1819.4,1.4615]
[1743285531228,1.09968,1819.4,1819.3,0.00824357]
[1743285531438,5.77688,1819.4,1819.3,0.00824357]
[1743285531834,5.77688,1819.4,1819.3,1.44964357]
[1743285532938,1.09992,1819.0,1818.9,3.2078]
[1743285533136,1.09998,1818.9,1818.8,1.4498]
[1743285533439,1.09998,1818.9,1818.6,4.6492]
[1743285533440,1.1001,1818.7,1818.6,4.6492]
[1743285533639,3.2078,1818.7,1818.3,0.7019]
[1743285533944,1.10028,1818.4,1818.3,2.8912]
[1743285534245,1.10028,1818.4,1818.3,2.89944357]
[1743285535543,1.10026,1818.5,1818.3,2.89944357]
[1743285535744,2.51918,1818.6,1818.4,1.4233]
[1743285536049,1.10022,1818.5,1818.4,1.4233]
[1743285536248,2.50312,1818.5,1818.4,1.4233]
[1743285538548,5.71092,1818.5,1818.4,1.4233]
[1743285539946,1.10028,1818.4,1818.3,0.00824357]
[1743285540147,2.50128,1818.4,1818.3,0.00824357]
[1743285543651,2.75098,1818.3,1817.4,4.30865]
[1743285543949,2.75098,1818.3,1817.2,8.61759243]
[1743285543950,1.1009,1817.4,1817.2,3.2078]
[1743285544155,1.10101,1817.2,1817.1,1.464]
[1743285544355,1.10107,1817.1,1817.0,1.3714]
[1743285544559,5.0366,1817.1,1816.5,0.7562]
[1743285544751,3.2078,1816.6,1816.5,0.7562]
[1743285545049,3.2078,1816.8,1816.5,2.1276]
[1743285545257,0.00824357,1817.2,1817.1,1.10107]
[1743285545552,0.00824357,1817.2,1817.1,4.30887]
[1743285546053,0.00824357,1817.2,1817.1,3.93647]
[1743285548844,0.00824357,1817.2,1817.1,2.8354]
[1743285550848,3.2078,1817.6,1817.1,6.0432]
[1743285551049,3.2078,1817.6,1817.5,1.10083]
[1743285551249,3.2078,1817.6,1817.4,4.67184]
[1743285551448,3.2078,1817.6,1817.5,2.1986]
[1743285551743,3.2078,1817.8,1817.6,1.10076]
[1743285551949,0.00824357,1817.7,1817.6,1.4513]
[1743285552253,0.00824357,1817.7,1817.6,2.55203]
[1743285554056,0.00824357,1817.7,1817.6,3.29583]
[1743285572264,3.21604357,1817.7,1817.5,1.10078]
[1743285572564,5.68897,1817.6,1817.4,1.10908357]
[1743285572765,1.3804,1817.5,1817.4,1.10908357]
[1743285572974,2.0902,1817.5,1817.4,1.10908357]
[1743285577271,2.0902,1817.5,1817.4,2.49568357]
[1743285579280,3.19103,1817.5,1817.4,0.00824357]
[1743285579983,3.19103,1817.5,1817.1,3.2078]
[1743285579984,1.10101,1817.2,1817.1,3.2078]
[1743285580477,1.10101,1817.2,1817.0,1.10108]
[1743285580678,2.8857,1817.1,1817.0,1.10108]
[1743285581271,2.8857,1817.1,1816.9,1.10664572]
[1743285581470,1.4714,1817.0,1816.9,1.10664572]
[1743285584475,1.4714,1817.0,1816.9,2.54524572]
[1743285585484,3.2078,1817.5,1817.4,1.10089]
[1743285585780,4.30837,1818.0,1817.6,1.10077]
[1743285585978,2.49419,1817.9,1817.6,1.10077]
[1743285586174,1.3936,1817.8,1817.6,2.53937]
[1743285589284,2.49425,1817.8,1817.6,2.53937]
[1743285589673,1.40054357,1817.7,1817.6,2.53937]
[1743285590082,1.40054357,1817.7,1817.5,5.0182]
[1743285590083,1.10077,1817.6,1817.4,4.30867]
[1743285590385,1.3923,1817.5,1817.4,4.30867]
[1743285592075,1.3923,1817.5,1817.4,5.67837]
[1743285593277,1.3923,1817.5,1817.4,2.47057]
[1743285593480,1.3923,1817.5,1817.4,5.67837]
[1743285598790,1.3923,1817.5,1817.4,2.47057]
[1743285598991,1.3923,1817.5,1817.4,5.67837]
[1743285599490,1.3923,1817.5,1817.4,2.47057]
[1743285606700,21.23512379,1817.6,1817.5,1.10083]
[1743285606894,21.23512379,1817.6,1817.5,3.97163]
[1743285607597,22.73722379,1817.6,1817.5,3.97163]
[1743285607902,23.83799379,1817.6,1817.5,3.97163]
[1743285609298,23.83799379,1817.6,1817.5,2.8708]
[1743285609603,27.04579379,1817.6,1817.5,2.8708]
[1743285609802,25.94502379,1817.6,1817.2,3.2078]
[1743285609998,1.10095,1817.3,1817.2,4.30879]
[1743285610219,1.10095,1817.3,1817.2,5.78889]
[1743285610403,1.10095,1817.3,1817.2,4.6879]
[1743285610705,1.10095,1817.3,1817.2,1.4801]
[1743285611098,1.10101,1817.2,1817.1,1.3978]
[1743285611905,1.3893,1817.3,1816.9,7.88445572]
[1743285612097,2.853,1817.1,1816.9,7.88445572]
[1743285612297,2.49043,1817.0,1816.9,8.28039572]
[1743285612700,5.69823,1817.0,1816.9,1.50259572]
[1743285614204,5.69823,1817.0,1816.9,0.00549572]
[1743285615607,1.10127,1816.8,1816.6,1.84865]
[1743285615997,1.4334,1816.7,1816.6,1.84865]
[1743285616295,2.53471,1816.7,1816.6,2.2345]
[1743285617807,1.4334,1816.7,1816.4,4.3081]
[1743285618005,5.80667,1816.6,1816.5,1.4142]
[1743285618205,5.80667,1816.6,1816.4,1.83854]
[1743285618406,2.59893,1816.5,1816.4,2.1513]
[1743285618705,3.34583,1816.5,1816.4,2.1513]
[1743285619706,3.34583,1816.5,1816.3,5.38883]
[1743285619707,1.10149,1816.4,1816.3,0.7163]
[1743285619907,2.59899,1816.4,1816.2,6.08676]
[1743285620406,1.3669,1816.3,1816.2,6.08676]
[1743285622412,1.84838,1816.5,1816.3,1.10154]
[1743285622709,1.3669,1816.4,1816.3,1.10154]
[1743285623107,4.30921,1816.6,1816.2,3.571]
[1743285623411,5.71511,1816.6,1816.4,1.10146]
[1743285623610,1.4059,1816.5,1816.4,1.10146]
[1743285623908,1.4059,1816.5,1816.3,1.10151]
[1743285623909,2.50733,1816.5,1816.3,1.10151]
[1743285624307,2.50733,1816.5,1816.4,0.7503]
[1743285625810,2.50733,1816.5,1816.4,1.85179]
[1743285626011,2.50733,1816.5,1816.3,1.10152]
[1743285626209,1.3655,1816.4,1816.3,1.10152]
[1743285626509,1.10155,1816.3,1816.2,4.2776]
[1743285627012,2.46703,1816.4,1816.2,5.37919]
[1743285627509,1.3655,1816.3,1816.2,5.37919]
[1743285627705,1.10167,1816.1,1816.0,0.7508]
[1743285628105,1.10177,1816.0,1815.8,5.38042]
[1743285628312,2.46727,1816.0,1815.8,5.38042]
[1743285628505,2.46727,1816.0,1815.8,4.2786]
[1743285628706,1.3655,1815.9,1815.8,4.2786]
[1743285629107,1.3655,1815.9,1815.8,5.38042]
[1743285631414,1.3655,1815.9,1815.8,5.38046]
[1743285632012,1.10186,1815.8,1815.7,3.2078]
[1743285632212,1.10192,1815.7,1815.5,1.4303]
[1743285632404,1.5036,1815.7,1815.5,1.4303]
[1743285632610,1.5036,1815.7,1815.6,1.10198]
[1743285632824,2.60554,1815.7,1815.5,2.53231]
[1743285633011,1.10198,1815.6,1815.5,2.53231]
[1743285633210,1.5036,1815.6,1815.5,2.53231]
[1743285633807,2.60558,1815.6,1815.5,2.8668]
[1743285637514,1.10208,1815.5,1815.3,3.2078]
[1743285637715,2.47708,1815.5,1815.4,1.3765]
[1743285639017,1.1021,1815.4,1815.3,4.7033]
[1743285639217,2.5898,1815.4,1815.3,6.0763]
[1743285639810,2.5898,1815.4,1815.3,3.2078]
[1743285640411,1.4877,1815.4,1815.3,5.68296]
[1743285642113,1.4877,1815.4,1815.3,2.47516]
[1743285644413,1.4877,1815.4,1815.3,3.16226]
[1743285644914,0.00824357,1815.8,1815.7,1.10192]
[1743285645121,0.00824357,1815.8,1815.7,4.67492]
[1743285645320,0.00824357,1815.8,1815.7,6.08442]
[1743285645524,0.00824357,1815.8,1815.7,6.77152]
[1743285647214,3.2078,1816.3,1816.2,1.10161]
[1743285647825,1.4673,1816.4,1816.3,1.10155]
[1743285648217,0.00824357,1816.5,1816.2,1.3984]
[1743285648421,0.00824357,1816.5,1816.3,3.573]
[1743285648720,0.00824357,1816.5,1816.4,1.3984]
[1743285649526,3.21604357,1816.5,1815.9,1.10178]
[1743285649824,3.2078,1816.3,1815.9,2.50018]
[1743285650027,1.10169,1816.1,1815.9,2.50018]
[1743285650217,1.4673,1816.0,1815.9,2.50018]
[1743285650413,1.4673,1816.0,1815.9,1.10178]
[1743285655944,3.2078,1816.3,1816.2,1.10161]
[1743285656145,1.4812,1816.3,1816.2,1.10161]
[1743285656335,5.00681357,1816.5,1816.3,1.10149]
[1743285656532,1.4381,1816.4,1816.3,1.10149]
[1743285656932,2.53959,1816.4,1816.2,1.10157]
[1743285658048,1.4381,1816.4,1816.3,1.10155]
[1743285661448,2.53962,1816.4,1816.3,3.572]
[1743285661749,1.10155,1816.3,1816.1,2.55593]
[1743285662045,2.60295,1816.3,1816.1,6.12793]
[1743285662441,1.5014,1816.2,1816.1,6.12793]
[1743285663747,1.5014,1816.2,1816.1,7.51363]
[1743285665145,0.00824357,1816.5,1816.4,1.10149]
[1743285665344,0.00824357,1816.5,1816.4,4.67349]
[1743285665740,0.00824357,1816.5,1816.4,6.17839]
[1743285667951,22.62212379,1817.0,1816.9,1.10119]
[1743285669254,24.07182379,1817.0,1816.8,2.51843357]
[1743285669456,1.4497,1816.9,1816.8,2.51843357]
[1743285670650,3.21604357,1817.1,1816.8,1.41724357]
[1743285670851,3.21604357,1817.1,1817.0,1.10113]
[1743285671060,4.66574357,1817.1,1817.0,1.10113]
[1743285671348,1.45794357,1817.1,1817.0,2.51013]
[1743285671945,0.00824357,1817.1,1817.0,6.08113]
[1743285672350,1.50894357,1817.1,1817.0,6.08113]
[1743285676747,0.00824357,1817.1,1817.0,6.08113]
[1743285678260,1.10931357,1817.1,1817.0,4.98]
[1743285678457,1.10113,1817.0,1816.9,1.415]
[1743285678658,1.10119,1816.9,1816.8,0.00824357]
[1743285678963,1.78509,1816.9,1816.8,0.00824357]
[1743285679161,3.27659,1816.9,1816.8,0.00824357]
[1743285679462,1.10146,1816.5,1816.2,4.6309]
[1743285679664,2.59299,1816.4,1816.3,5.0139]
[1743285679959,1.10155,1816.3,1816.2,3.2078]
[1743285680159,1.10155,1816.3,1815.9,59.39849397]
[1743285680160,6.119,1816.3,1815.9,8.51449397]
[1743285680460,1.10174,1816.0,1815.9,8.51449397]
[1743285680655,4.30952,1816.1,1815.9,8.52273754]
[1743285680858,1.4985,1816.0,1815.9,9.62453754]
[1743285681361,1.4985,1816.0,1815.9,2.47184357]
[1743285682359,0.00824357,1816.1,1816.0,1.10174]
[1743285682564,0.00824357,1816.1,1816.0,6.75444]
[1743285682863,4.7063,1816.4,1816.3,1.10155]
[1743285683252,4.7063,1816.4,1816.3,4.67255]
[1743285684060,4.7063,1816.4,1816.3,3.571]
[1743285684562,4.7063,1816.4,1816.3,5.0108]
[1743285685156,1.4985,1816.4,1816.3,5.0108]
[1743285686157,1.4985,1816.4,1816.3,6.11235]
[1743285689063,1.4985,1816.4,1816.3,5.0108]
[1743285689264,1.4985,1816.4,1816.3,6.11235]
[1743285691271,1.4985,1816.4,1816.3,5.0108]
[1743285691568,1.4985,1816.4,1816.3,6.11235]
[1743285693769,2.59999,1816.4,1816.3,5.0108]
[1743285694870,1.4985,1816.4,1816.3,6.11235]
[1743285695670,2.59999,1816.4,1816.3,6.11235]
[1743285695864,2.59999,1816.4,1816.2,1.10159]
[1743285696070,1.4674,1816.3,1815.9,1.38474357]
[1743285696265,1.10174,1816.0,1815.9,0.00824357]
[1743285700379,1.4674,1816.1,1815.9,0.00824357]
[1743285700680,3.2078,1817.0,1816.4,1.10149]
[1743285700884,1.10129,1816.8,1816.4,4.67249]
[1743285701186,23.70615379,1816.7,1816.4,6.88649]
[1743285701680,22.60482379,1816.7,1816.4,6.88649]
[1743285702180,21.23512379,1816.7,1816.6,1.10137]
[1743285703281,3.2078,1817.0,1816.8,1.10123]
[1743285703477,5.73753,1817.0,1816.8,4.67223]
[1743285703679,4.6364,1817.0,1816.8,4.67223]
[1743285703987,4.6364,1817.0,1816.9,1.3965]
[1743285704180,1.4286,1817.0,1816.9,2.49769]
[1743285704486,1.4286,1817.0,1816.9,1.3965]
[1743285706382,0.00824357,1817.1,1816.9,2.49769]
[1743285706570,1.45764357,1817.1,1817.0,1.4542]
[1743285706773,1.45764357,1817.1,1817.0,2.55533]
[1743285707277,0.00824357,1817.1,1817.0,2.55533]
[1743285707976,1.10931357,1817.1,1817.0,1.4542]
[1743285708171,1.10113,1817.0,1816.9,3.571]
[1743285708375,2.49783,1817.0,1816.9,3.571]
[1743285714786,2.49783,1817.0,1816.9,4.9798]
[1743285715385,2.49783,1817.0,1816.9,3.571]
[1743285715584,0.00824357,1817.1,1816.9,4.67219]
[1743285715789,0.00824357,1817.1,1817.0,5.71773]